bitfinex/quotes_BTCUSD_20240715
["timestamp","ask_amount","ask_price","bid_price","bid_amount"]
[1721022020254,0.0412495,62938.0,62936.0,0.00306353]
[1721022020971,0.003,62938.0,62937.0,0.115]
[1721022021174,0.002,62939.0,62938.0,0.115]
[1721022021302,0.04126397,62940.0,62939.0,0.257995]
[1721022021507,0.04126397,62940.0,62939.0,0.543986]
[1721022022114,0.04126397,62940.0,62939.0,0.255995]
[1721022022741,0.04126397,62940.0,62939.0,1.041986]
[1721022022940,0.04126397,62940.0,62939.0,0.62266412]
[1721022023261,0.04126397,62940.0,62939.0,0.51166412]
[1721022024034,0.04126397,62940.0,62939.0,0.01166412]
[1721022024239,0.18525697,62940.0,62939.0,0.01766412]
[1721022024445,0.73804728,62940.0,62939.0,0.01]
[1721022025026,0.30906828,62940.0,62939.0,0.006]
[1721022025270,0.30906828,62940.0,62939.0,0.07594688]
[1721022025271,0.08326828,62940.0,62939.0,0.07594688]
[1721022025471,0.04226397,62940.0,62939.0,0.07594688]
[1721022025675,0.04226397,62940.0,62939.0,0.01464688]
[1721022025872,0.08265343,62940.0,62939.0,0.00864688]
[1721022026206,0.22564643,62940.0,62939.0,0.01064688]
[1721022026416,0.73743901,62940.0,62939.0,0.01564688]
[1721022026601,0.73743901,62940.0,62939.0,0.01264688]
[1721022026809,0.73743901,62940.0,62939.0,0.011]
[1721022026810,0.73843901,62940.0,62939.0,0.011]
[1721022026988,0.73843901,62940.0,62939.0,0.006]
[1721022027406,0.08366001,62940.0,62939.0,0.006]
[1721022027607,0.08266001,62940.0,62937.0,0.115]
[1721022027769,0.08266001,62940.0,62936.0,0.115]
[1721022027770,0.04163399,62939.0,62936.0,0.115]
[1721022027970,0.04163399,62939.0,62935.0,0.115]
[1721022028793,0.04163399,62939.0,62937.0,0.115]
[1721022029597,0.04126397,62940.0,62937.0,0.115]
[1721022029849,0.04140525,62939.0,62937.0,0.115]
[1721022030601,0.04140525,62939.0,62937.0,0.118]
[1721022030975,0.04140525,62939.0,62937.0,0.003]
[1721022031177,0.428992,62938.0,62937.0,0.003]
[1721022031513,1.35715591,62938.0,62937.0,0.003]
[1721022031684,1.75715591,62938.0,62937.0,0.003]
[1721022031835,1.55715591,62938.0,62937.0,0.003]
[1721022032052,0.429081,62925.0,62924.0,0.006372]
[1721022032232,0.143031,62923.0,62919.0,0.4863143]
[1721022032437,0.04140525,62922.0,62916.0,0.115]
[1721022032693,0.04140525,62922.0,62918.0,0.115]
[1721022032996,0.04213796,62921.0,62916.0,0.178722]
[1721022033131,0.04213796,62920.0,62919.0,0.115]
[1721022033336,0.143017,62930.0,62924.0,0.115]
[1721022033535,0.18514875,62929.0,62924.0,0.115]
[1721022033737,0.04213075,62928.0,62924.0,0.115]
[1721022034395,0.04213075,62928.0,62920.0,0.258037]
[1721022034396,0.18515175,62928.0,62920.0,0.258037]
[1721022034726,0.04213075,62927.0,62921.0,0.059]
[1721022034874,0.18515575,62926.0,62921.0,0.059]
[1721022035080,0.04213075,62925.0,62922.0,0.115]
[1721022035283,0.04213075,62924.0,62922.0,0.115]
[1721022035441,0.04213075,62923.0,62922.0,0.115]
[1721022036092,0.04084687,62923.0,62922.0,0.115]
[1721022036289,0.04084687,62926.0,62922.0,0.115]
[1721022036492,0.04084687,62926.0,62923.0,0.115]
[1721022036690,0.04084687,62926.0,62923.0,0.114]
[1721022037382,0.04084687,62926.0,62925.0,0.114]
[1721022037553,0.286014,62934.0,62925.0,0.059]
[1721022037554,0.1,62933.0,62925.0,0.059]
[1721022037788,0.1476,62929.0,62922.0,0.007]
[1721022037989,0.143026,62926.0,62922.0,0.007]
[1721022038130,0.0408872,62925.0,62922.0,0.007]
[1721022038600,0.0408872,62925.0,62921.0,0.059]
[1721022038729,0.0408872,62925.0,62923.0,0.059]
[1721022038945,0.0408872,62925.0,62923.0,0.061]
[1721022039137,0.0408872,62925.0,62923.0,0.063]
[1721022039343,0.04120616,62924.0,62923.0,0.118]
[1721022039546,0.143021,62928.0,62921.0,0.143036]
[1721022039547,0.143021,62928.0,62925.0,0.059]
[1721022039745,0.04120472,62927.0,62925.0,0.114]
[1721022039992,0.04120472,62926.0,62925.0,0.113]
[1721022040146,0.04120472,62926.0,62925.0,0.058]
[1721022040347,0.04120472,62926.0,62925.0,0.057]
[1721022040550,0.04120472,62928.0,62925.0,0.057]
[1721022041342,0.04120472,62928.0,62925.0,0.1753]
[1721022042138,0.04120472,62928.0,62925.0,0.1793]
[1721022042396,0.04120472,62927.0,62926.0,0.112]
[1721022042558,0.04111583,62932.0,62926.0,0.112]
[1721022042764,0.001,62928.0,62927.0,0.112]
[1721022043013,0.001,62928.0,62927.0,0.255022]
[1721022043213,0.001,62928.0,62927.0,0.541067]
[1721022043340,0.04209411,62928.0,62927.0,0.255022]
[1721022043540,0.04109411,62928.0,62927.0,0.255022]
[1721022043744,0.04103505,62933.0,62930.0,0.112]
[1721022043950,0.06591418,62932.0,62929.0,0.057]
[1721022044178,0.11174599,62934.0,62927.0,0.112]
[1721022044179,0.04103505,62931.0,62927.0,0.112]
[1721022044380,0.04103505,62930.0,62927.0,0.057]
[1721022044578,0.04103505,62929.0,62926.0,0.008]
[1721022044780,0.286024,62932.0,62926.0,0.008]
[1721022044781,0.04103505,62928.0,62926.0,0.008]
[1721022045016,0.143014,62931.0,62927.0,0.013]
[1721022045239,0.0658606,62930.0,62924.0,0.057]
[1721022045517,0.286024,62932.0,62927.0,0.028]
[1721022045518,0.18380839,62929.0,62927.0,0.028]
[1721022045717,0.143019,62929.0,62927.0,0.028]
[1721022046063,0.143019,62929.0,62924.0,0.112]
[1721022046240,0.143019,62929.0,62927.0,0.028]
[1721022046410,0.143019,62929.0,62927.0,0.014]
[1721022046615,0.143019,62929.0,62924.0,0.112]
[1721022046811,0.143019,62929.0,62927.0,0.014]
[1721022047017,0.143019,62929.0,62927.0,0.028]
[1721022047582,0.143015,62931.0,62927.0,0.14]
[1721022047740,0.02487976,62930.0,62927.0,0.14]
[1721022047913,0.02487976,62930.0,62928.0,0.01200747]
[1721022048300,0.143015,62931.0,62928.0,0.01200747]
[1721022048301,0.04757072,62931.0,62928.0,0.01200747]
[1721022048505,0.04757072,62931.0,62928.0,0.112]
[1721022048702,0.04757072,62931.0,62929.0,0.01200495]
[1721022048703,0.02487982,62930.0,62929.0,0.01200495]
[1721022049219,0.02487982,62930.0,62927.0,0.112]
[1721022049426,0.04762881,62929.0,62928.0,0.02600747]
[1721022049987,0.04762881,62929.0,62928.0,0.01200747]
[1721022050411,0.07135608,62929.0,62927.0,0.014]
[1721022050602,0.07135608,62929.0,62928.0,0.01200747]
[1721022050741,0.07135608,62930.0,62928.0,0.01200747]
[1721022051517,0.07135608,62929.0,62928.0,0.01200747]
[1721022051912,0.09623631,62929.0,62927.0,0.112]
[1721022052071,0.07135608,62929.0,62928.0,0.02400747]
[1721022052277,0.143009,62933.0,62928.0,0.02400747]
[1721022052484,0.143009,62933.0,62928.0,0.14900747]
[1721022052485,0.07148089,62929.0,62928.0,0.14900747]
[1721022052898,0.09530798,62930.0,62929.0,0.112]
[1721022053099,0.02488023,62930.0,62929.0,0.112]
[1721022053262,0.02488023,62930.0,62929.0,0.26480495]
[1721022054240,0.09635899,62930.0,62929.0,0.26480495]
[1721022054369,0.09635899,62930.0,62929.0,0.27580495]
[1721022054568,0.07147876,62930.0,62929.0,0.27580495]
[1721022054926,0.09530798,62932.0,62929.0,0.27580495]
[1721022054927,0.07147876,62931.0,62929.0,0.27580495]
[1721022055126,0.07147876,62931.0,62929.0,0.28680495]
[1721022055283,0.07147876,62931.0,62930.0,0.112]
[1721022055487,0.0953051,62932.0,62931.0,0.112]
[1721022055688,0.23631834,62932.0,62931.0,0.255013]
[1721022055888,0.23631834,62932.0,62931.0,0.2670128]
[1721022056069,0.14101324,62932.0,62931.0,0.2670128]
[1721022056279,0.14101324,62932.0,62931.0,0.0119998]
[1721022056486,0.06503527,62932.0,62931.0,0.1239998]
[1721022056689,0.23620385,62932.0,62931.0,0.27807633]
[1721022056927,0.14089393,62932.0,62931.0,0.13506333]
[1721022057328,0.14089393,62932.0,62931.0,0.1319998]
[1721022057541,0.14089393,62932.0,62931.0,0.02306333]
[1721022057943,0.14089393,62932.0,62931.0,0.03106333]
[1721022058262,0.14089393,62932.0,62931.0,0.0279998]
[1721022058402,0.14089393,62932.0,62931.0,0.2830128]
[1721022058615,0.23620893,62932.0,62931.0,0.2830128]
[1721022058814,0.10092998,62932.0,62931.0,0.2830128]
[1721022059017,0.13659622,62932.0,62931.0,0.2830128]
[1721022060331,0.21314158,62932.0,62931.0,0.8550668]
[1721022060510,0.04023319,62932.0,62931.0,0.9161668]
[1721022060716,0.04073915,62937.0,62936.0,0.255002]
[1721022061032,0.06561692,62937.0,62935.0,0.112]
[1721022061234,0.07148375,62937.0,62936.0,0.01505017]
[1721022061435,0.18456722,62937.0,62936.0,0.01505017]
[1721022061638,0.21367924,62937.0,62932.0,0.00306353]
[1721022061839,0.1422001,62936.0,62935.0,0.112]
[1721022062332,0.1422001,62936.0,62934.0,0.112]
[1721022062533,0.09530552,62937.0,62934.0,0.112]
[1721022062534,0.21368261,62935.0,62934.0,0.112]
[1721022063136,0.08842218,62935.0,62934.0,0.112]
[1721022063539,0.13712734,62935.0,62933.0,0.112]
[1721022063703,0.08842051,62934.0,62931.0,0.255013]
[1721022063901,0.04076722,62933.0,62932.0,0.00306353]
[1721022064384,0.04076722,62934.0,62933.0,0.112]
[1721022064616,0.00083,62938.0,62934.0,0.112]
[1721022064789,0.0714799,62936.0,62934.0,0.112]
[1721022064994,0.0714799,62936.0,62935.0,0.112]
[1721022065217,0.13709291,62936.0,62935.0,0.112]
[1721022065420,0.11326458,62936.0,62935.0,0.112]
[1721022065956,0.14214015,62936.0,62933.0,0.00306353]
[1721022066216,0.11326539,62935.0,62933.0,0.01606353]
[1721022066415,0.04073511,62934.0,62933.0,0.112]
[1721022067894,0.04765314,62936.0,62934.0,0.612]
[1721022068094,0.07231166,62938.0,62936.0,0.11506353]
[1721022068095,0.04765314,62937.0,62936.0,0.11506353]
[1721022068293,0.08801921,62937.0,62936.0,0.11506353]
[1721022068472,0.13672814,62937.0,62936.0,0.00306353]
[1721022068678,0.13672814,62937.0,62936.0,0.01197603]
[1721022068679,0.06524293,62937.0,62936.0,0.01197603]
[1721022069088,0.06524293,62937.0,62936.0,0.19003956]
[1721022069310,0.08802083,62937.0,62936.0,0.19003956]
[1721022069511,0.08802083,62937.0,62936.0,0.20003956]
[1721022069710,0.04036607,62937.0,62936.0,0.19697603]
[1721022069910,0.04036607,62937.0,62936.0,0.33897803]
[1721022070131,0.04036607,62937.0,62936.0,0.34897803]
[1721022070550,0.04036607,62937.0,62936.0,0.33897803]
[1721022070726,0.04036607,62937.0,62936.0,0.62498203]
[1721022070926,0.04036607,62937.0,62936.0,0.63898203]
[1721022071105,0.04036607,62937.0,62936.0,0.92498603]
[1721022071326,0.04036607,62937.0,62936.0,0.91598603]
[1721022071664,0.04036607,62937.0,62936.0,1.29569003]
[1721022072202,0.04036607,62937.0,62936.0,0.42367803]
[1721022072489,0.04036607,62937.0,62936.0,0.69568203]
[1721022072636,0.04036607,62937.0,62936.0,0.70968203]
[1721022072844,0.04036607,62937.0,62936.0,0.72368203]
[1721022073045,0.04036607,62937.0,62936.0,0.69568203]
[1721022073312,0.04036607,62937.0,62936.0,0.61598203]
[1721022073509,0.04036607,62937.0,62936.0,0.62998203]
[1721022074267,0.00083,62938.0,62937.0,0.143]
[1721022074451,0.00083,62938.0,62937.0,0.25806353]
[1721022074798,0.03950835,62938.0,62937.0,0.27002596]
[1721022075606,0.03950835,62938.0,62937.0,0.28402596]
[1721022075964,0.03950835,62938.0,62937.0,0.29802596]
[1721022076928,0.03950835,62938.0,62937.0,0.58402596]
[1721022077129,0.00083,62938.0,62937.0,0.58096243]
[1721022077902,0.03934877,62938.0,62937.0,0.58096243]
[1721022078582,0.00083,62938.0,62937.0,0.58096243]
[1721022078850,0.00083,62938.0,62937.0,0.86696243]
[1721022079009,0.03925248,62938.0,62937.0,0.94656243]
[1721022080216,0.00083,62938.0,62937.0,1.55906243]
[1721022080401,0.00083,62938.0,62937.0,1.41394243]
[1721022080761,0.00083,62938.0,62937.0,1.69994243]
[1721022081340,0.00083,62938.0,62937.0,1.68594243]
[1721022081555,0.00083,62938.0,62937.0,1.68900596]
[1721022081888,0.00083,62938.0,62937.0,1.70300596]
[1721022082052,0.00083,62938.0,62937.0,1.69994243]
[1721022082258,0.00083,62938.0,62937.0,1.67194243]
[1721022082616,0.00083,62938.0,62937.0,1.04494243]
[1721022082816,0.00083,62938.0,62937.0,1.54494243]
[1721022083060,0.00083,62938.0,62937.0,1.83094243]
[1721022083256,0.00083,62938.0,62937.0,1.84494243]
[1721022083458,0.00083,62938.0,62937.0,1.81694243]
[1721022083881,0.00083,62938.0,62937.0,1.31694243]
[1721022084084,0.00083,62938.0,62937.0,1.83094243]
[1721022084493,0.00083,62938.0,62937.0,1.81694243]
[1721022084990,0.00083,62938.0,62937.0,1.83094243]
[1721022085554,0.00083,62938.0,62937.0,1.81694243]
[1721022085828,0.00083,62938.0,62937.0,1.83094243]
[1721022089047,0.00083,62938.0,62937.0,1.29906243]
[1721022089274,0.00083,62938.0,62937.0,1.79906243]
[1721022089984,0.00083,62938.0,62937.0,1.88206243]
[1721022090750,0.00083,62938.0,62937.0,1.91394243]
[1721022091062,0.00083,62938.0,62937.0,1.91784609]
[1721022091309,0.00083,62938.0,62937.0,2.40384609]
[1721022094924,0.00083,62938.0,62937.0,2.78984609]
[1721022095265,0.00083,62938.0,62937.0,2.88586923]
[1721022095642,0.00083,62938.0,62937.0,2.88982048]
[1721022096580,0.00083,62938.0,62937.0,2.98982048]
[1721022096791,0.00083,62938.0,62937.0,3.12180886]
[1721022096995,0.00083,62938.0,62937.0,2.98982048]
[1721022097198,0.00083,62938.0,62937.0,3.1078057]
[1721022097423,0.00083,62938.0,62937.0,3.0938057]
[1721022097572,0.00083,62938.0,62937.0,3.1078057]
[1721022097776,0.00083,62938.0,62937.0,3.4078057]
[1721022098026,0.00083,62938.0,62937.0,3.3938057]
[1721022098638,0.00083,62938.0,62937.0,3.3798057]
[1721022098914,0.00083,62938.0,62937.0,3.5474057]
[1721022099119,0.00083,62938.0,62937.0,3.5614057]
[1721022099305,0.00083,62938.0,62937.0,3.5754057]
[1721022099502,0.00083,62955.0,62954.0,2.01353]
[1721022099715,0.00083,62955.0,62954.0,2.322453]
[1721022099933,0.00083,62955.0,62954.0,2.33822935]
[1721022101342,0.00083,62955.0,62954.0,2.35222935]
[1721022102419,0.00083,62955.0,62954.0,2.36622935]
[1721022104684,0.00083,62955.0,62954.0,2.02030635]
[1721022104815,0.00083,62955.0,62954.0,1.67950635]
[1721022107081,0.00083,62955.0,62954.0,1.80318135]
[1721022110399,0.00083,62955.0,62954.0,1.74318135]
[1721022111624,0.00083,62955.0,62954.0,1.24318135]
[1721022111800,0.00083,62955.0,62954.0,1.74318135]
[1721022112550,0.00083,62955.0,62954.0,2.22910435]
[1721022113247,0.00083,62955.0,62954.0,2.26098435]
[1721022113662,0.00083,62955.0,62954.0,2.56098435]
[1721022113961,0.00083,62955.0,62954.0,2.53298435]
[1721022114112,0.00083,62955.0,62954.0,2.54698435]
[1721022114815,0.00083,62955.0,62954.0,2.53298435]
[1721022115014,0.00083,62955.0,62954.0,2.54698435]
[1721022115697,0.00083,62955.0,62954.0,2.56098435]
[1721022117274,0.00083,62955.0,62954.0,2.66098435]
[1721022117425,0.00083,62955.0,62954.0,3.04690735]
[1721022118369,0.00083,62955.0,62954.0,2.96098435]
[1721022118576,0.00083,62955.0,62954.0,2.94698435]
[1721022119118,0.00083,62955.0,62954.0,3.26467435]
[1721022119937,0.00083,62955.0,62954.0,3.27867435]
[1721022120134,0.00083,62955.0,62954.0,2.16467435]
[1721022120331,0.00083,62955.0,62954.0,2.80467435]
[1721022120536,0.00083,62955.0,62954.0,2.97867435]
[1721022120760,0.00083,62955.0,62954.0,2.99267435]
[1721022121204,0.00083,62955.0,62954.0,2.75267435]
[1721022121411,0.00083,62955.0,62954.0,2.85267435]
[1721022121799,0.00083,62955.0,62954.0,2.75267435]
[1721022122400,0.00083,62955.0,62954.0,2.05267435]
[1721022122656,0.00083,62955.0,62954.0,2.69267435]
[1721022122931,0.00083,62955.0,62954.0,2.85267435]
[1721022124183,0.00083,62955.0,62954.0,2.99147435]
[1721022124594,0.00083,62955.0,62954.0,3.57739735]
[1721022125314,0.00083,62955.0,62954.0,3.29147435]
[1721022125510,0.00083,62955.0,62954.0,3.19147435]
[1721022126814,0.00083,62955.0,62954.0,3.57739735]
[1721022127016,0.00083,62955.0,62954.0,3.29147435]
[1721022127353,0.00083,62955.0,62954.0,3.19147435]
[1721022127553,0.00083,62955.0,62954.0,3.29147435]
[1721022127751,0.00083,62955.0,62954.0,3.09147435]
[1721022128913,0.00083,62955.0,62954.0,2.99147435]
[1721022129702,0.00083,62955.0,62954.0,3.09147435]
[1721022129859,0.00083,62955.0,62954.0,2.99147435]
[1721022130274,0.00083,62955.0,62954.0,2.29147435]
[1721022130470,0.00083,62955.0,62954.0,3.09147435]
[1721022131758,0.00083,62955.0,62954.0,3.01337435]
[1721022132181,0.0795,62966.0,62954.0,3.01337435]
[1721022132182,0.0056263,62977.0,62956.0,2.108088]
[1721022132386,0.10465045,62992.0,62956.0,2.108088]
[1721022132387,0.4169173,62997.0,62996.0,1.472]
[1721022132658,0.001,63009.0,63008.0,0.23188]
[1721022132824,0.012528,63026.0,63013.0,0.77148]
[1721022132986,0.012528,63026.0,63013.0,1.944062]
[1721022133204,0.012528,63026.0,63013.0,1.34794914]
[1721022133400,0.2308,63025.0,63013.0,1.3349264]
[1721022133597,0.2258,63019.0,63013.0,1.71094914]
[1721022134293,0.005,63025.0,63013.0,1.71094914]
[1721022134294,0.92381136,63014.0,63013.0,6.29378328]
[1721022134517,0.92381136,63014.0,63013.0,2.71170021]
[1721022134718,0.92381136,63014.0,63013.0,2.80319178]
[1721022134878,0.92381136,63014.0,63013.0,2.71206967]
[1721022135079,0.92381136,63014.0,63013.0,2.66820758]
[1721022135288,0.92381136,63014.0,63013.0,3.73562604]
[1721022135493,0.92381136,63014.0,63013.0,3.73256251]
[1721022135902,0.92381136,63014.0,63013.0,4.30081561]
[1721022136078,0.92381136,63014.0,63013.0,3.50359856]
[1721022136282,0.92381136,63014.0,63013.0,2.7704446]
[1721022136433,0.92381136,63014.0,63013.0,3.68745212]
[1721022136631,0.92381136,63014.0,63013.0,3.0171896]
[1721022136834,0.92381136,63014.0,63013.0,3.12025313]
[1721022137066,0.92381136,63014.0,63013.0,4.28202604]
[1721022137271,0.92381136,63014.0,63013.0,4.01990813]
[1721022137427,0.92381136,63014.0,63013.0,3.3417092]
[1721022137624,0.92381136,63014.0,63013.0,2.98891396]
[1721022137939,0.92381136,63014.0,63013.0,3.63894143]
[1721022138141,0.92381136,63014.0,63013.0,3.98792771]
[1721022138366,0.92381136,63014.0,63013.0,4.27242197]
[1721022138570,0.92381136,63014.0,63013.0,4.57203697]
[1721022138968,0.92381136,63014.0,63013.0,4.65803697]
[1721022139169,0.92381136,63014.0,63013.0,3.98127294]
[1721022139419,0.92381136,63014.0,63013.0,3.77192818]
[1721022139548,0.92381136,63014.0,63013.0,3.79529507]
[1721022139753,0.92381136,63014.0,63013.0,3.25794322]
[1721022139950,0.92381136,63014.0,63013.0,3.00190984]
[1721022140152,0.92381136,63014.0,63013.0,2.25392633]
[1721022140354,0.92381136,63014.0,63013.0,2.2368628]
[1721022140556,0.92381136,63014.0,63013.0,2.2041829]
[1721022141222,0.92381136,63014.0,63013.0,2.1901829]
[1721022141392,0.92381136,63014.0,63013.0,2.3041829]
[1721022141759,0.92381136,63014.0,63013.0,2.3501829]
[1721022142267,0.92381136,63014.0,63013.0,2.3591829]
[1721022142695,0.92381136,63014.0,63013.0,2.3731829]
[1721022143121,0.92381136,63014.0,63013.0,1.8054409]
[1721022143337,0.92464136,63014.0,63013.0,1.8054409]
[1721022143564,1.15044136,63014.0,63013.0,0.5594639]
[1721022144084,1.15044136,63014.0,63013.0,0.4474639]
[1721022144288,1.28914136,63014.0,63013.0,0.3948639]
[1721022144532,1.53196636,63014.0,63013.0,0.2449639]
[1721022144743,1.28914136,63014.0,63013.0,0.2309639]
[1721022144958,1.28914136,63014.0,63013.0,0.35863]
[1721022145127,1.28914136,63014.0,63013.0,0.23100954]
[1721022145889,1.43196636,63014.0,63013.0,0.23100954]
[1721022146093,1.71761636,63014.0,63013.0,0.13370954]
[1721022146414,1.71761636,63014.0,63013.0,0.132503]
[1721022146814,1.61761636,63014.0,63013.0,0.132503]
[1721022147029,0.285658,63013.0,63008.0,0.1]
[1721022147204,0.142848,63004.0,63003.0,0.063636]
[1721022147419,0.142848,63004.0,62991.0,0.00306353]
[1721022147420,1.4e-05,62998.0,62991.0,0.00306353]
[1721022147630,1.4e-05,62998.0,62991.0,0.11506353]
[1721022147631,0.2258,62992.0,62991.0,0.11506353]
[1721022147829,0.2258,62992.0,62990.0,0.112]
[1721022148029,0.2258,62992.0,62991.0,0.254877]
[1721022148272,0.2258,62992.0,62991.0,0.540632]
[1721022148834,0.2258,62992.0,62991.0,1.040632]
[1721022149212,0.2258,62992.0,62991.0,1.326387]
[1721022149627,0.2258,62992.0,62991.0,0.826387]
[1721022150040,0.2268,62992.0,62991.0,0.840387]
[1721022150943,0.2268,62992.0,62991.0,0.854387]
[1721022151369,0.2268,62992.0,62991.0,0.028]
[1721022151575,0.2268,62992.0,62991.0,0.854387]
[1721022152335,0.2268,62992.0,62991.0,1.140142]
[1721022152336,0.001,62992.0,62991.0,1.140142]
[1721022152509,0.225814,62998.0,62997.0,0.54059]
[1721022153268,0.225814,62998.0,62997.0,0.42851]
[1721022153473,0.225814,62998.0,62992.0,0.112]
[1721022153609,0.225814,62998.0,62991.0,0.114]
[1721022153812,1.4e-05,62998.0,62992.0,0.112]
[1721022154012,0.2258,62993.0,62992.0,0.254875]
[1721022154221,0.2258,62993.0,62992.0,0.826375]
[1721022155826,0.2258,62993.0,62992.0,0.840375]
[1721022156445,0.225609,62993.0,62992.0,0.840375]
[1721022156851,0.225609,62993.0,62992.0,0.852375]
[1721022157069,0.225609,62993.0,62992.0,0.838375]
[1721022157467,0.225609,62993.0,62992.0,0.840375]
[1721022158004,0.225609,62993.0,62992.0,0.84180609]
[1721022158206,0.225609,62993.0,62992.0,0.57005609]
[1721022158593,1.4e-05,62998.0,62997.0,0.826317]
[1721022158768,1.4e-05,62998.0,62997.0,1.12745831]
[1721022159929,1.4e-05,62998.0,62997.0,1.14145831]
[1721022160491,1.4e-05,62998.0,62997.0,1.15545831]
[1721022160901,1.4e-05,62998.0,62997.0,1.21545831]
[1721022161103,1.4e-05,62998.0,62997.0,1.51906531]
[1721022161307,1.4e-05,62998.0,62997.0,1.55606531]
[1721022161529,0.0752,63012.0,63011.0,0.540496]
[1721022161759,1.05044136,63014.0,63013.0,0.540482]
[1721022162106,0.82464136,63014.0,63013.0,1.1271385]
[1721022163527,0.82464136,63014.0,63013.0,1.4957935]
[1721022163688,0.82464136,63014.0,63013.0,1.5097935]
[1721022164315,0.82464136,63014.0,63013.0,1.6237935]
[1721022164466,0.82464136,63014.0,63013.0,2.1094485]
[1721022164669,0.82464136,63014.0,63013.0,1.6097935]
[1721022165122,0.81464136,63014.0,63013.0,1.6237935]
[1721022165703,0.81464136,63014.0,63013.0,1.61285703]
[1721022166130,0.81464136,63014.0,63013.0,1.62685703]
[1721022166349,0.81464136,63014.0,63013.0,1.6097935]
[1721022166735,0.81464136,63014.0,63013.0,1.5637935]
[1721022166954,0.81464136,63014.0,63013.0,1.5497935]
[1721022167374,0.81464136,63014.0,63013.0,1.6097935]
[1721022167685,0.71464136,63014.0,63013.0,1.8097935]
[1721022167889,0.71464136,63014.0,63013.0,1.64248517]
[1721022168093,0.71464136,63014.0,63013.0,1.6097935]
[1721022168263,0.71464136,63014.0,63013.0,1.65648517]
[1721022168586,0.71464136,63014.0,63013.0,1.6097935]
[1721022168788,0.71464136,63014.0,63013.0,1.5957935]
[1721022168988,0.71464136,63014.0,63013.0,1.6097935]
[1721022169165,0.71464136,63014.0,63013.0,1.5357935]
[1721022169370,0.71464136,63014.0,63013.0,1.7501385]
[1721022169595,0.71464136,63014.0,63013.0,1.2641385]
[1721022169807,0.71464136,63014.0,63013.0,1.7271385]
[1721022170230,0.71464136,63014.0,63013.0,1.7551385]
[1721022170441,0.71464136,63014.0,63013.0,2.7593035]
[1721022170626,0.71464136,63014.0,63013.0,3.15155087]
[1721022170782,0.71464136,63014.0,63013.0,3.33755087]
[1721022171627,0.71464136,63014.0,63013.0,3.64094087]
[1721022172059,0.71464136,63014.0,63013.0,3.65494087]
[1721022172628,0.71464136,63014.0,63013.0,3.56894087]
[1721022172992,0.71464136,63014.0,63013.0,3.65494087]
[1721022173328,0.71464136,63014.0,63013.0,3.66894087]
[1721022173562,0.71464136,63014.0,63013.0,3.18505835]
[1721022173765,0.71464136,63014.0,63013.0,3.66892205]
[1721022174105,0.71464136,63014.0,63013.0,4.05457691]
[1721022174306,0.71464136,63014.0,63013.0,4.19476486]
[1721022174619,0.71464136,63014.0,63013.0,4.05457691]
[1721022175076,0.71464136,63014.0,63013.0,4.95457691]
[1721022175281,0.71464136,63014.0,63013.0,4.25548991]
[1721022175444,0.71464136,63014.0,63013.0,3.86983491]
[1721022175644,0.71464136,63014.0,63013.0,3.48204006]
[1721022175864,0.71464136,63014.0,63013.0,3.68204006]
[1721022176083,0.71464136,63014.0,63013.0,4.25020758]
[1721022176757,0.71464136,63014.0,63013.0,2.70300758]
[1721022177002,0.71464136,63014.0,63013.0,3.0509765]
[1721022177139,0.71464136,63014.0,63013.0,4.0592401]
[1721022177340,0.71464136,63014.0,63013.0,3.10303044]
[1721022178098,0.71464136,63014.0,63013.0,3.30303044]
[1721022178325,0.71464136,63014.0,63013.0,3.10303044]
[1721022178875,0.71464136,63014.0,63013.0,2.42603044]
[1721022179081,0.71464136,63014.0,63013.0,2.62549544]
[1721022179282,0.71464136,63014.0,63013.0,2.68549544]
[1721022179485,0.71464136,63014.0,63013.0,2.49576195]
[1721022179646,0.71464136,63014.0,63013.0,2.14370801]
[1721022179848,0.71464136,63014.0,63013.0,2.12028973]
[1721022180051,0.71464136,63014.0,63013.0,2.0734415]
[1721022180480,0.71464136,63014.0,63013.0,2.0454415]
[1721022180881,0.71464136,63014.0,63013.0,2.0734415]
[1721022181090,0.86034136,63014.0,63013.0,0.4616495]
[1721022181294,0.86034136,63014.0,63013.0,0.9616495]
[1721022181510,0.86034136,63014.0,63013.0,2.0594415]
[1721022182187,0.71464136,63014.0,63013.0,2.0594415]
[1721022182575,0.71464136,63014.0,63013.0,2.0454415]
[1721022182960,0.71464136,63014.0,63013.0,1.7877865]
[1721022183135,0.71464136,63014.0,63013.0,1.7737865]
[1721022183543,0.73125355,63014.0,63013.0,2.0594415]
[1721022184166,0.73125355,63014.0,63013.0,2.0734415]
[1721022184744,0.73125355,63014.0,63013.0,2.1370595]
[1721022185490,0.73125355,63014.0,63013.0,1.8514045]
[1721022186104,0.73125355,63014.0,63013.0,1.2800945]
[1721022186319,0.73125355,63014.0,63013.0,1.27555664]
[1721022186524,0.73125355,63014.0,63013.0,1.06121164]
[1721022187065,0.73125355,63014.0,63013.0,1.24755664]
[1721022187346,0.73125355,63014.0,63013.0,0.45711164]
[1721022187522,0.87025355,63014.0,63013.0,0.44311164]
[1721022187733,0.87025355,63014.0,63013.0,0.42911164]
[1721022187734,0.87325355,63014.0,63013.0,0.42911164]
[1721022187927,0.87025355,63014.0,63013.0,0.44311164]
[1721022188138,0.87025355,63014.0,63013.0,0.45711164]
[1721022188294,1.01607855,63014.0,63013.0,0.45711164]
[1721022188529,1.38278093,63014.0,63013.0,0.44311164]
[1721022188739,2.03054884,63014.0,63013.0,0.44311164]
[1721022188936,2.31619884,63014.0,63013.0,0.44311164]
[1721022189149,1.12297174,63014.0,63013.0,0.44311164]
[1721022189350,1.12297174,63014.0,63013.0,0.432303]
[1721022189351,1.34877174,63014.0,63013.0,0.432303]
[1721022189609,1.34877174,63014.0,63013.0,0.44138739]
[1721022189911,1.34877174,63014.0,63013.0,0.42738739]
[1721022190215,1.34877174,63014.0,63013.0,0.44138739]
[1721022190589,1.34877174,63014.0,63013.0,0.44638739]
[1721022190590,1.20594674,63014.0,63013.0,0.44638739]
[1721022190792,1.19605355,63014.0,63013.0,0.44638739]
[1721022191141,1.35020786,63014.0,63013.0,0.42738739]
[1721022191320,1.3631004,63014.0,63013.0,0.42938739]
[1721022191558,1.3601004,63014.0,63013.0,0.43438739]
[1721022191704,1.2172754,63014.0,63013.0,0.43438739]
[1721022191905,1.9344004,63014.0,63013.0,0.43438739]
[1721022192121,2.29651831,63014.0,63013.0,0.43438739]